[Event "Titled Tuesday Blitz April 11 Early 2023"]
[White "Avazkhonov, Alikhon"]
[Black "TimGrutter03"]
[WhiteFideId "14208504"]
[WhiteElo "1739"]
[BlackElo "2586"]
[Result "0-1"]
[Round "05"]
[TimeControl "180+2"]
[Date "2023.04.11"]
[WhiteClock "0:00:04"]
[BlackClock "0:00:45"]

1. f4 {[%clk 0:02:58]}  g6 {[%clk 0:03:00]} 2. Nf3 {[%clk 0:02:58]}  Bg7 {[%clk 0:03:01]} 3. g3 {[%clk 0:02:59]}  d6 {[%clk 0:03:01]} 4. Bg2 {[%clk 0:03:00]}  Nc6 {[%clk 0:03:01]} 5. O-O {[%clk 0:03:00]}  e5 {[%clk 0:03:01]} 6. d3 {[%clk 0:02:18]}  Nge7 {[%clk 0:02:55]} 7. Nc3 {[%clk 0:02:17]}  O-O {[%clk 0:02:55]} 8. e4 {[%clk 0:02:16]}  f5 {[%clk 0:02:52]} 9. Be3 {[%clk 0:02:05]}  h6 {[%clk 0:02:37]} 10. Qd2 {[%clk 0:02:04]}  Kh7 {[%clk 0:02:31]} 11. Nd5 {[%clk 0:01:56]}  Nxd5 {[%clk 0:02:24]} 12. exd5 {[%clk 0:01:57]}  Nd4 {[%clk 0:02:25]} 13. Nxd4 {[%clk 0:01:48]}  exd4 {[%clk 0:02:25]} 14. Bf2 {[%clk 0:01:49]}  a5 {[%clk 0:01:58]} 15. Rae1 {[%clk 0:01:47]}  Bd7 {[%clk 0:01:54]} 16. Re2 {[%clk 0:01:31]}  Qf6 {[%clk 0:01:52]} 17. Rfe1 {[%clk 0:01:28]}  b6 {[%clk 0:01:50]} 18. Re7 {[%clk 0:01:05]}  Rf7 {[%clk 0:01:47]} 19. Qe2 {[%clk 0:00:39]}  Raf8 {[%clk 0:01:30]} 20. Bf3 {[%clk 0:00:39]}  a4 {[%clk 0:01:17]} 21. Kg2 {[%clk 0:00:35]}  Kg8 {[%clk 0:01:07]} 22. h3 {[%clk 0:00:12]}  Rd8 {[%clk 0:01:01]} 23. Rxf7 {[%clk 0:00:11]}  Kxf7 {[%clk 0:01:00]} 24. Qe7+ {[%clk 0:00:11]}  Qxe7 {[%clk 0:01:00]} 25. Rxe7+ {[%clk 0:00:10]}  Kxe7 {[%clk 0:01:01]} 26. Kf1 {[%clk 0:00:10]}  Ra8 {[%clk 0:00:57]} 27. Ke2 {[%clk 0:00:10]}  Ra5 {[%clk 0:00:57]} 28. Kd2 {[%clk 0:00:10]}  Be8 {[%clk 0:00:57]} 29. c4 {[%clk 0:00:07]}  dxc3+ {[%clk 0:00:55]} 30. bxc3 {[%clk 0:00:05]}  Bf7 {[%clk 0:00:53]} 31. c4 {[%clk 0:00:06]}  Kd7 {[%clk 0:00:49]} 32. Kc2 {[%clk 0:00:04]}  b5 {[%clk 0:00:48]} 33. Be1 {[%clk 0:00:04]}  Ra8 {[%clk 0:00:45]} 0-1


[Site "https://www.chess.com"]

[Event "Titled Tuesday Blitz April 11 Early 2023"]
[White "MKlose11"]
[Black "Ronka, Erik"]
[BlackFideId "505080"]
[WhiteElo "2578"]
[BlackElo "2264"]
[Result "1-0"]
[Round "05"]
[TimeControl "180+2"]
[Date "2023.04.11"]
[WhiteClock "0:02:44"]
[BlackClock "0:02:23"]

1. e4 {[%clk 0:02:56]}  c6 {[%clk 0:02:59]} 2. Nc3 {[%clk 0:02:51]}  d5 {[%clk 0:02:59]} 3. g3 {[%clk 0:02:51]}  dxe4 {[%clk 0:02:59]} 4. Nxe4 {[%clk 0:02:51]}  Nf6 {[%clk 0:03:00]} 5. Bg2 {[%clk 0:02:51]}  Nxe4 {[%clk 0:03:00]} 6. Bxe4 {[%clk 0:02:52]}  g6 {[%clk 0:02:56]} 7. Ne2 {[%clk 0:02:51]}  Bg7 {[%clk 0:02:57]} 8. O-O {[%clk 0:02:51]}  O-O {[%clk 0:02:58]} 9. d4 {[%clk 0:02:52]}  Bh3 {[%clk 0:02:57]} 10. Re1 {[%clk 0:02:52]}  Bg4 {[%clk 0:02:52]} 11. Bg2 {[%clk 0:02:50]}  Nd7 {[%clk 0:02:51]} 12. c3 {[%clk 0:02:50]}  e5 {[%clk 0:02:49]} 13. d5 {[%clk 0:02:45]}  cxd5 {[%clk 0:02:48]} 14. Qxd5 {[%clk 0:02:46]}  Rb8 {[%clk 0:02:39]} 15. Be3 {[%clk 0:02:45]}  Qa5 {[%clk 0:02:23]} 16. Qxa5 {[%clk 0:02:44]} 1-0


[Site "https://www.chess.com"]

[Event "Titled Tuesday Blitz April 11 Early 2023"]
[White "Filgueira, Hernan"]
[Black "Tarasova, Viktoriya"]
[WhiteFideId "101770"]
[BlackFideId "4175840"]
[WhiteElo "2363"]
[BlackElo "2182"]
[Result "1-0"]
[Round "05"]
[TimeControl "180+2"]
[Date "2023.04.11"]
[WhiteClock "0:01:31"]
[BlackClock "0:00:08"]

1. c4 {[%clk 0:02:59]}  Nf6 {[%clk 0:02:59]} 2. Nc3 {[%clk 0:02:59]}  e5 {[%clk 0:02:59]} 3. Nf3 {[%clk 0:02:58]}  Nc6 {[%clk 0:03:00]} 4. a3 {[%clk 0:02:58]}  d5 {[%clk 0:02:59]} 5. cxd5 {[%clk 0:02:57]}  Nxd5 {[%clk 0:02:59]} 6. Qc2 {[%clk 0:02:58]}  Nxc3 {[%clk 0:02:57]} 7. bxc3 {[%clk 0:02:57]}  Bd6 {[%clk 0:02:57]} 8. g3 {[%clk 0:02:57]}  O-O {[%clk 0:02:57]} 9. Bg2 {[%clk 0:02:56]}  Be6 {[%clk 0:02:57]} 10. d3 {[%clk 0:02:56]}  h6 {[%clk 0:02:57]} 11. O-O {[%clk 0:02:55]}  Re8 {[%clk 0:02:57]} 12. Rb1 {[%clk 0:02:54]}  Rb8 {[%clk 0:02:56]} 13. e4 {[%clk 0:02:53]}  Qe7 {[%clk 0:02:55]} 14. a4 {[%clk 0:02:51]}  Red8 {[%clk 0:02:49]} 15. Nh4 {[%clk 0:02:42]}  Bc5 {[%clk 0:02:45]} 16. Qe2 {[%clk 0:02:37]}  Qd7 {[%clk 0:02:33]} 17. Rd1 {[%clk 0:02:36]}  Bg4 {[%clk 0:02:34]} 18. Bf3 {[%clk 0:02:35]}  Bxf3 {[%clk 0:02:28]} 19. Qxf3 {[%clk 0:02:35]}  Qe6 {[%clk 0:02:22]} 20. Nf5 {[%clk 0:02:28]}  Ne7 {[%clk 0:02:10]} 21. Rb5 {[%clk 0:02:24]}  b6 {[%clk 0:01:57]} 22. d4 {[%clk 0:02:15]}  Bd6 {[%clk 0:01:20]} 23. d5 {[%clk 0:02:11]}  Qg6 {[%clk 0:01:17]} 24. Nh4 {[%clk 0:02:09]}  Qh7 {[%clk 0:01:12]} 25. Be3 {[%clk 0:02:07]}  g5 {[%clk 0:01:05]} 26. Nf5 {[%clk 0:02:06]}  Nxf5 {[%clk 0:01:04]} 27. exf5 {[%clk 0:02:06]}  f6 {[%clk 0:01:04]} 28. c4 {[%clk 0:02:04]}  h5 {[%clk 0:00:59]} 29. h3 {[%clk 0:02:02]}  Kh8 {[%clk 0:00:49]} 30. a5 {[%clk 0:01:58]}  Rg8 {[%clk 0:00:46]} 31. axb6 {[%clk 0:01:57]}  g4 {[%clk 0:00:39]} 32. hxg4 {[%clk 0:01:56]}  hxg4 {[%clk 0:00:39]} 33. Qe4 {[%clk 0:01:52]}  axb6 {[%clk 0:00:33]} 34. Kf1 {[%clk 0:01:50]}  Ra8 {[%clk 0:00:20]} 35. Rb2 {[%clk 0:01:48]}  Kg7 {[%clk 0:00:17]} 36. Ke2 {[%clk 0:01:48]}  Rh8 {[%clk 0:00:12]} 37. Qxg4+ {[%clk 0:01:47]}  Kf7 {[%clk 0:00:13]} 38. Qe4 {[%clk 0:01:39]}  Rag8 {[%clk 0:00:12]} 39. g4 {[%clk 0:01:36]}  Qh4 {[%clk 0:00:12]} 40. Rg1 {[%clk 0:01:35]}  Qh2 {[%clk 0:00:11]} 41. Rbb1 {[%clk 0:01:33]}  Qh3 {[%clk 0:00:08]} 42. Rh1 {[%clk 0:01:31]} 1-0


[Site "https://www.chess.com"]

[Event "Titled Tuesday Blitz April 11 Early 2023"]
[White "Eynullayev, Atilla"]
[Black "Van Foreest, Machteld"]
[WhiteFideId "13413570"]
[BlackFideId "1051563"]
[WhiteElo "2181"]
[BlackElo "2018"]
[Result "0-1"]
[Round "05"]
[TimeControl "180+2"]
[Date "2023.04.11"]
[WhiteClock "0:00:02"]
[BlackClock "0:00:10"]

1. d4 {[%clk 0:02:58]}  d5 {[%clk 0:02:58]} 2. c4 {[%clk 0:02:57]}  e6 {[%clk 0:02:57]} 3. Nc3 {[%clk 0:02:47]}  Bb4 {[%clk 0:02:53]} 4. Qa4+ {[%clk 0:02:44]}  Nc6 {[%clk 0:02:52]} 5. Bd2 {[%clk 0:02:45]}  Bd7 {[%clk 0:02:47]} 6. cxd5 {[%clk 0:02:45]}  Nxd4 {[%clk 0:02:42]} 7. Qd1 {[%clk 0:02:43]}  exd5 {[%clk 0:02:35]} 8. Nxd5 {[%clk 0:02:22]}  Bxd2+ {[%clk 0:02:35]} 9. Qxd2 {[%clk 0:02:23]}  Be6 {[%clk 0:01:43]} 10. Qxd4 {[%clk 0:02:13]}  Qxd5 {[%clk 0:01:39]} 11. Qxg7 {[%clk 0:02:09]}  O-O-O {[%clk 0:01:37]} 12. Nf3 {[%clk 0:01:30]}  f6 {[%clk 0:01:36]} 13. Rc1 {[%clk 0:00:49]}  Qa5+ {[%clk 0:01:20]} 14. Rc3 {[%clk 0:00:47]}  Bb3 {[%clk 0:01:14]} 15. Nd2 {[%clk 0:00:34]}  Bxa2 {[%clk 0:00:44]} 16. e3 {[%clk 0:00:22]}  Be6 {[%clk 0:00:28]} 17. Be2 {[%clk 0:00:10]}  c6 {[%clk 0:00:16]} 18. O-O {[%clk 0:00:08]}  Nh6 {[%clk 0:00:15]} 19. Qxh6 {[%clk 0:00:05]}  Rxd2 {[%clk 0:00:15]} 20. Qxf6 {[%clk 0:00:05]}  Re8 {[%clk 0:00:13]} 21. Bc4 {[%clk 0:00:04]}  Bxc4 {[%clk 0:00:12]} 22. Rxc4 {[%clk 0:00:05]}  Rxb2 {[%clk 0:00:11]} 23. h4 {[%clk 0:00:04]}  Qb5 {[%clk 0:00:10]} 24. Qf7 {[%clk 0:00:03]}  Rd8 {[%clk 0:00:09]} 25. Re4 {[%clk 0:00:03]}  Rb1 {[%clk 0:00:08]} 26. Rxb1 {[%clk 0:00:02]}  Qxb1+ {[%clk 0:00:09]} 27. Kh2 {[%clk 0:00:02]}  Qxe4 {[%clk 0:00:09]} 28. f3 {[%clk 0:00:01]}  Qxh4+ {[%clk 0:00:09]} 29. Kg1 {[%clk 0:00:02]}  Rd1# {[%clk 0:00:10]} 0-1


[Site "https://www.chess.com"]

[Event "Titled Tuesday Blitz April 11 Early 2023"]
[White "Ruiz Aguilar, Pablo Alexander"]
[Black "Gontcharov, Vladislav"]
[WhiteFideId "4401352"]
[BlackFideId "4123492"]
[WhiteElo "2138"]
[BlackElo "2420"]
[Result "1/2-1/2"]
[Round "05"]
[TimeControl "180+2"]
[Date "2023.04.11"]
[WhiteClock "0:00:08"]
[BlackClock "0:00:20"]

1. e4 {[%clk 0:03:00]}  e6 {[%clk 0:02:59]} 2. d4 {[%clk 0:03:00]}  d5 {[%clk 0:02:58]} 3. Nd2 {[%clk 0:03:00]}  Be7 {[%clk 0:02:48]} 4. Ngf3 {[%clk 0:02:59]}  Nf6 {[%clk 0:02:48]} 5. e5 {[%clk 0:02:58]}  Nfd7 {[%clk 0:02:48]} 6. Bd3 {[%clk 0:02:58]}  c5 {[%clk 0:02:48]} 7. c3 {[%clk 0:02:58]}  Nc6 {[%clk 0:02:48]} 8. Bc2 {[%clk 0:02:51]}  Qb6 {[%clk 0:02:46]} 9. Nb3 {[%clk 0:02:50]}  cxd4 {[%clk 0:02:46]} 10. cxd4 {[%clk 0:02:50]}  Nb4 {[%clk 0:02:46]} 11. Bb1 {[%clk 0:02:47]}  f6 {[%clk 0:02:27]} 12. exf6 {[%clk 0:02:45]}  Nxf6 {[%clk 0:02:27]} 13. O-O {[%clk 0:02:45]}  O-O {[%clk 0:02:27]} 14. Ne5 {[%clk 0:02:33]}  Nc6 {[%clk 0:02:22]} 15. Be3 {[%clk 0:02:33]}  Qc7 {[%clk 0:02:13]} 16. Qc2 {[%clk 0:02:25]}  Bd7 {[%clk 0:02:02]} 17. h3 {[%clk 0:02:12]}  Rac8 {[%clk 0:02:01]} 18. Nxc6 {[%clk 0:02:10]}  Qxc6 {[%clk 0:01:57]} 19. Qxc6 {[%clk 0:02:07]}  Bxc6 {[%clk 0:01:57]} 20. Na5 {[%clk 0:02:07]}  Bb5 {[%clk 0:01:44]} 21. Rd1 {[%clk 0:01:59]}  b6 {[%clk 0:01:44]} 22. Nb3 {[%clk 0:01:49]}  Ba4 {[%clk 0:01:43]} 23. Bd3 {[%clk 0:01:49]}  Kf7 {[%clk 0:01:38]} 24. Rdc1 {[%clk 0:01:49]}  Rxc1+ {[%clk 0:01:35]} 25. Rxc1 {[%clk 0:01:49]}  Bd6 {[%clk 0:01:31]} 26. Nd2 {[%clk 0:01:47]}  Bd7 {[%clk 0:01:27]} 27. Nf3 {[%clk 0:01:47]}  Rc8 {[%clk 0:01:22]} 28. Ne5+ {[%clk 0:01:45]}  Ke7 {[%clk 0:01:15]} 29. Rxc8 {[%clk 0:01:40]}  Bxc8 {[%clk 0:01:13]} 30. Nc6+ {[%clk 0:01:41]}  Kf7 {[%clk 0:01:07]} 31. Nxa7 {[%clk 0:01:41]}  Bd7 {[%clk 0:01:07]} 32. f3 {[%clk 0:01:38]}  Nh5 {[%clk 0:01:03]} 33. Nb5 {[%clk 0:01:28]}  Bb8 {[%clk 0:00:53]} 34. Nc3 {[%clk 0:01:15]}  Nf4 {[%clk 0:00:51]} 35. Bf1 {[%clk 0:01:15]}  h6 {[%clk 0:00:46]} 36. a3 {[%clk 0:01:15]}  g5 {[%clk 0:00:45]} 37. b4 {[%clk 0:01:15]}  Ke7 {[%clk 0:00:37]} 38. Kf2 {[%clk 0:01:11]}  Bd6 {[%clk 0:00:35]} 39. g3 {[%clk 0:01:08]}  Nh5 {[%clk 0:00:34]} 40. g4 {[%clk 0:01:01]}  Nf4 {[%clk 0:00:32]} 41. Bxf4 {[%clk 0:00:45]}  Bxf4 {[%clk 0:00:31]} 42. Ke2 {[%clk 0:00:46]}  Bc1 {[%clk 0:00:26]} 43. a4 {[%clk 0:00:45]}  Bb2 {[%clk 0:00:25]} 44. Kd3 {[%clk 0:00:34]}  Bxc3 {[%clk 0:00:22]} 45. Kxc3 {[%clk 0:00:34]}  Bxa4 {[%clk 0:00:22]} 46. Be2 {[%clk 0:00:24]}  b5 {[%clk 0:00:19]} 47. Kd2 {[%clk 0:00:19]}  Kd6 {[%clk 0:00:20]} 48. Ke3 {[%clk 0:00:19]}  e5 {[%clk 0:00:20]} 49. Kd3 {[%clk 0:00:13]}  Ke6 {[%clk 0:00:20]} 50. Ke3 {[%clk 0:00:13]}  Kd6 {[%clk 0:00:20]} 51. Kd3 {[%clk 0:00:13]}  Bb3 {[%clk 0:00:21]} 52. Ke3 {[%clk 0:00:13]}  Bc4 {[%clk 0:00:21]} 53. Bd1 {[%clk 0:00:13]}  Ke6 {[%clk 0:00:21]} 54. Bc2 {[%clk 0:00:09]}  Kd6 {[%clk 0:00:21]} 55. Bf5 {[%clk 0:00:09]}  Bb3 {[%clk 0:00:20]} 56. Bd3 {[%clk 0:00:08]}  Bc4 {[%clk 0:00:21]} 57. Bf5 {[%clk 0:00:08]}  Bb3 {[%clk 0:00:20]} 58. Bd3 {[%clk 0:00:07]}  Bc4 {[%clk 0:00:20]} 59. Bf5 {[%clk 0:00:08]} 1/2-1/2


[Site "https://www.chess.com"]

[Event "Titled Tuesday Blitz April 11 Early 2023"]
[White "Novikova, Galina"]
[Black "Royal, Shreyas"]
[WhiteFideId "4157095"]
[BlackFideId "448869"]
[WhiteElo "1953"]
[BlackElo "2331"]
[Result "0-1"]
[Round "05"]
[TimeControl "180+2"]
[Date "2023.04.11"]
[WhiteClock "0:00:04"]
[BlackClock "0:00:37"]

1. e4 {[%clk 0:03:00]}  c5 {[%clk 0:02:58]} 2. Nf3 {[%clk 0:03:00]}  d6 {[%clk 0:02:59]} 3. d4 {[%clk 0:03:01]}  cxd4 {[%clk 0:03:00]} 4. Nxd4 {[%clk 0:03:01]}  Nf6 {[%clk 0:03:00]} 5. Nc3 {[%clk 0:03:02]}  Nc6 {[%clk 0:03:01]} 6. h3 {[%clk 0:03:01]}  g6 {[%clk 0:02:58]} 7. g4 {[%clk 0:03:01]}  Bg7 {[%clk 0:02:58]} 8. Be3 {[%clk 0:02:59]}  O-O {[%clk 0:02:58]} 9. Bg2 {[%clk 0:02:59]}  Bd7 {[%clk 0:02:57]} 10. O-O {[%clk 0:02:53]}  a6 {[%clk 0:02:56]} 11. Qd2 {[%clk 0:02:43]}  Na5 {[%clk 0:02:47]} 12. b3 {[%clk 0:02:39]}  b5 {[%clk 0:02:47]} 13. Nd5 {[%clk 0:02:29]}  Rc8 {[%clk 0:02:39]} 14. Rad1 {[%clk 0:01:50]}  Nc6 {[%clk 0:02:31]} 15. Kh1 {[%clk 0:01:40]}  h5 {[%clk 0:02:18]} 16. g5 {[%clk 0:01:36]}  Nxd5 {[%clk 0:02:18]} 17. exd5 {[%clk 0:01:37]}  Nxd4 {[%clk 0:02:16]} 18. Bxd4 {[%clk 0:01:37]}  Bxd4 {[%clk 0:02:17]} 19. Qxd4 {[%clk 0:01:38]}  Rxc2 {[%clk 0:02:17]} 20. Be4 {[%clk 0:01:22]}  Rc5 {[%clk 0:02:11]} 21. Qd3 {[%clk 0:01:20]}  Kg7 {[%clk 0:01:54]} 22. Qd4+ {[%clk 0:01:19]}  Kh7 {[%clk 0:01:55]} 23. h4 {[%clk 0:01:13]}  Qc8 {[%clk 0:01:53]} 24. Rfe1 {[%clk 0:01:11]}  Bg4 {[%clk 0:01:44]} 25. Rd3 {[%clk 0:01:03]}  Bf5 {[%clk 0:01:42]} 26. Rde3 {[%clk 0:00:59]}  Bxe4+ {[%clk 0:01:40]} 27. Qxe4 {[%clk 0:01:00]}  Rc7 {[%clk 0:01:36]} 28. Rf3 {[%clk 0:00:59]}  Kg8 {[%clk 0:01:26]} 29. Qf4 {[%clk 0:00:43]}  Qb7 {[%clk 0:01:20]} 30. Rd3 {[%clk 0:00:36]}  Qb6 {[%clk 0:01:17]} 31. Kg1 {[%clk 0:00:34]}  Qc5 {[%clk 0:01:15]} 32. Qf3 {[%clk 0:00:23]}  Qb4 {[%clk 0:01:13]} 33. Re4 {[%clk 0:00:20]}  Qa3 {[%clk 0:01:12]} 34. Rde3 {[%clk 0:00:19]}  Re8 {[%clk 0:01:09]} 35. Qe2 {[%clk 0:00:18]}  Qc1+ {[%clk 0:01:05]} 36. Kg2 {[%clk 0:00:18]}  Qc5 {[%clk 0:01:05]} 37. Qd3 {[%clk 0:00:18]}  Qc2 {[%clk 0:01:01]} 38. Qxc2 {[%clk 0:00:08]}  Rxc2 {[%clk 0:01:02]} 39. Rxe7 {[%clk 0:00:09]}  Rxe7 {[%clk 0:01:03]} 40. Rxe7 {[%clk 0:00:09]}  Rxa2 {[%clk 0:01:03]} 41. Rd7 {[%clk 0:00:10]}  a5 {[%clk 0:00:56]} 42. Rxd6 {[%clk 0:00:10]}  a4 {[%clk 0:00:55]} 43. bxa4 {[%clk 0:00:11]}  Rxa4 {[%clk 0:00:56]} 44. Rd8+ {[%clk 0:00:11]}  Kg7 {[%clk 0:00:56]} 45. d6 {[%clk 0:00:12]}  Rxh4 {[%clk 0:00:54]} 46. Rb8 {[%clk 0:00:10]}  Rd4 {[%clk 0:00:55]} 47. Rb6 {[%clk 0:00:10]}  b4 {[%clk 0:00:54]} 48. Kf3 {[%clk 0:00:10]}  h4 {[%clk 0:00:48]} 49. Ke3 {[%clk 0:00:10]}  Rd5 {[%clk 0:00:47]} 50. Rxb4 {[%clk 0:00:09]}  Rxd6 {[%clk 0:00:47]} 51. Rxh4 {[%clk 0:00:09]}  Re6+ {[%clk 0:00:47]} 52. Kf3 {[%clk 0:00:09]}  Re5 {[%clk 0:00:48]} 53. Rg4 {[%clk 0:00:08]}  Kf8 {[%clk 0:00:48]} 54. Kg3 {[%clk 0:00:08]}  Ra5 {[%clk 0:00:48]} 55. f4 {[%clk 0:00:06]}  Ra3+ {[%clk 0:00:48]} 56. Kg2 {[%clk 0:00:06]}  Ke7 {[%clk 0:00:49]} 57. Rh4 {[%clk 0:00:06]}  Ke6 {[%clk 0:00:49]} 58. Rh7 {[%clk 0:00:07]}  Ra7 {[%clk 0:00:49]} 59. Kg3 {[%clk 0:00:06]}  Kf5 {[%clk 0:00:49]} 60. Rg7 {[%clk 0:00:04]}  Rd7 {[%clk 0:00:45]} 61. Rh7 {[%clk 0:00:04]}  Ke4 {[%clk 0:00:43]} 62. Kg4 {[%clk 0:00:04]}  Kd5 {[%clk 0:00:40]} 63. Rh2 {[%clk 0:00:03]}  Ra7 {[%clk 0:00:39]} 64. Rd2+ {[%clk 0:00:03]}  Ke6 {[%clk 0:00:40]} 65. Re2+ {[%clk 0:00:04]}  Kd5 {[%clk 0:00:41]} 66. Rd2+ {[%clk 0:00:04]}  Ke4 {[%clk 0:00:41]} 67. Re2+ {[%clk 0:00:04]}  Kd3 {[%clk 0:00:42]} 68. Re8 {[%clk 0:00:03]}  Ra1 {[%clk 0:00:41]} 69. Rd8+ {[%clk 0:00:04]}  Ke2 {[%clk 0:00:41]} 70. Re8+ {[%clk 0:00:05]}  Kf2 {[%clk 0:00:41]} 71. Re7 {[%clk 0:00:05]}  Rg1+ {[%clk 0:00:40]} 72. Kh3 {[%clk 0:00:05]}  Kf3 {[%clk 0:00:39]} 73. Kh2 {[%clk 0:00:05]}  Rg2+ {[%clk 0:00:39]} 74. Kh1 {[%clk 0:00:04]}  Rc2 {[%clk 0:00:37]} 0-1


[Site "https://www.chess.com"]

[Event "Titled Tuesday Blitz April 11 Early 2023"]
[White "Odegov, Artem"]
[Black "Qashashvili, Alexandre"]
[WhiteFideId "34183644"]
[BlackFideId "13600842"]
[WhiteElo "2300"]
[BlackElo "2405"]
[Result "1-0"]
[Round "05"]
[TimeControl "180+2"]
[Date "2023.04.11"]
[WhiteClock "0:00:38"]
[BlackClock "0:00:03"]

1. d4 {[%clk 0:02:56]}  c6 {[%clk 0:01:57]} 2. c4 {[%clk 0:02:55]}  d5 {[%clk 0:01:54]} 3. Nc3 {[%clk 0:02:55]}  Nf6 {[%clk 0:01:54]} 4. Nf3 {[%clk 0:02:54]}  Bf5 {[%clk 0:01:53]} 5. Qb3 {[%clk 0:02:52]}  Qb6 {[%clk 0:01:52]} 6. c5 {[%clk 0:02:52]}  Qxb3 {[%clk 0:01:51]} 7. axb3 {[%clk 0:02:53]}  Na6 {[%clk 0:01:50]} 8. e4 {[%clk 0:01:58]}  Nb4 {[%clk 0:01:48]} 9. Ra4 {[%clk 0:01:58]}  Nc2+ {[%clk 0:01:40]} 10. Kd1 {[%clk 0:01:58]}  Nxe4 {[%clk 0:01:34]} 11. Nxe4 {[%clk 0:01:58]}  Bxe4 {[%clk 0:01:34]} 12. Ne5 {[%clk 0:01:26]}  f6 {[%clk 0:01:30]} 13. Nd3 {[%clk 0:01:26]}  Nxd4 {[%clk 0:01:25]} 14. Rxd4 {[%clk 0:01:25]}  e5 {[%clk 0:01:18]} 15. Ra4 {[%clk 0:01:25]}  Bxd3 {[%clk 0:01:17]} 16. Bxd3 {[%clk 0:01:26]}  Bxc5 {[%clk 0:01:15]} 17. Rf1 {[%clk 0:01:13]}  e4 {[%clk 0:01:15]} 18. Bc2 {[%clk 0:01:11]}  O-O-O {[%clk 0:01:13]} 19. Bf4 {[%clk 0:01:09]}  a6 {[%clk 0:01:07]} 20. f3 {[%clk 0:01:09]}  f5 {[%clk 0:00:58]} 21. fxe4 {[%clk 0:01:00]}  dxe4+ {[%clk 0:00:55]} 22. Ke2 {[%clk 0:01:00]}  g6 {[%clk 0:00:54]} 23. Raa1 {[%clk 0:00:58]}  Bd6 {[%clk 0:00:53]} 24. Bg5 {[%clk 0:00:57]}  Rd7 {[%clk 0:00:51]} 25. Rad1 {[%clk 0:00:56]}  Bxh2 {[%clk 0:00:43]} 26. Rxd7 {[%clk 0:00:54]}  Kxd7 {[%clk 0:00:42]} 27. g4 {[%clk 0:00:53]}  Rf8 {[%clk 0:00:27]} 28. gxf5 {[%clk 0:00:51]}  Rxf5 {[%clk 0:00:19]} 29. Bc1 {[%clk 0:00:51]}  Rxf1 {[%clk 0:00:12]} 30. Kxf1 {[%clk 0:00:52]}  Ke6 {[%clk 0:00:10]} 31. Bxe4 {[%clk 0:00:52]}  Be5 {[%clk 0:00:10]} 32. Ke2 {[%clk 0:00:51]}  Kf6 {[%clk 0:00:09]} 33. Kf3 {[%clk 0:00:51]}  h5 {[%clk 0:00:09]} 34. Bd3 {[%clk 0:00:49]}  g5 {[%clk 0:00:08]} 35. Be2 {[%clk 0:00:44]}  g4+ {[%clk 0:00:07]} 36. Ke4 {[%clk 0:00:43]}  Ke6 {[%clk 0:00:03]} 37. b4 {[%clk 0:00:39]}  Kf6 {[%clk 0:00:03]} 38. b3 {[%clk 0:00:39]}  Ke6 {[%clk 0:00:03]} 39. Bd2 {[%clk 0:00:38]} 1-0


[Site "https://www.chess.com"]